bitfinex-derivatives/quotes_BTCF0:USTF0_20240814
["timestamp","ask_amount","ask_price","bid_price","bid_amount"]
[1723653144650,0.084564,59103.0,59102.0,0.084564]
[1723653144971,0.555364,59103.0,59102.0,0.084564]
[1723653145153,0.4708,59103.0,59098.0,0.08457]
[1723653145354,0.084564,59102.0,59101.0,0.001]
[1723653145954,0.084566,59101.0,59098.0,0.08457]
[1723653146357,0.3608,59103.0,59095.0,0.01118292]
[1723653146556,0.36668,59110.0,59100.0,0.084567]
[1723653146557,0.084561,59104.0,59100.0,0.084567]
[1723653146854,0.084561,59104.0,59101.0,0.001]
[1723653147062,0.084564,59103.0,59101.0,0.001]
[1723653147252,0.014,59101.0,59100.0,0.084567]
[1723653148651,0.095565,59102.0,59100.0,0.085567]
[1723653148860,0.005,59101.0,59100.0,0.085567]
[1723653149562,0.005,59101.0,59100.0,0.088567]
[1723653150960,0.014,59104.0,59103.0,0.084564]
[1723653151669,0.3608,59110.0,59108.0,0.084556]
[1723653151856,0.4808,59110.0,59108.0,0.084556]
[1723653152051,0.4808,59110.0,59109.0,0.084555]
[1723653153265,0.565354,59110.0,59109.0,0.084555]
[1723653154157,0.3678,59110.0,59109.0,0.084555]
[1723653154361,0.3678,59110.0,59109.0,0.09558865]
[1723653154553,0.4978,59110.0,59109.0,0.09558865]
[1723653154758,0.3608,59110.0,59109.0,0.09558865]
[1723653155158,0.3708,59110.0,59109.0,0.09658865]
[1723653155762,0.564354,59110.0,59109.0,0.002]
[1723653155965,0.573354,59110.0,59109.0,0.003]
[1723653156263,0.4888,59110.0,59109.0,0.003]
[1723653156773,0.4888,59110.0,59109.0,0.087555]
[1723653157459,0.573354,59110.0,59109.0,0.003]
[1723653157660,0.713354,59110.0,59109.0,0.003]
[1723653157865,1.51832,59110.0,59095.0,0.29265378]
[1723653158175,0.084574,59096.0,59095.0,0.08482778]
[1723653159165,0.3608,59104.0,59098.0,0.084571]
[1723653159366,0.084567,59101.0,59100.0,0.084567]
[1723653159760,0.084562,59105.0,59104.0,0.084562]
[1723653159965,0.194562,59105.0,59104.0,0.084562]
[1723653160171,0.024639,59105.0,59104.0,0.614486]
[1723653160472,0.084533,59125.0,59104.0,0.614486]
[1723653160473,0.3608,59123.0,59122.0,0.084537]
[1723653160669,0.3608,59123.0,59122.0,0.376937]
[1723653162261,0.3728,59123.0,59122.0,0.377937]
[1723653162659,0.012,59123.0,59122.0,0.377937]
[1723653163871,0.012,59123.0,59122.0,0.378937]
[1723653164174,0.026,59123.0,59122.0,0.086537]
[1723653165469,0.026,59123.0,59122.0,0.993977]
[1723653165674,0.026,59123.0,59122.0,1.264414]
[1723653165675,0.024,59123.0,59122.0,1.264414]
[1723653166272,0.024,59123.0,59122.0,1.45485885]
[1723653167670,0.024,59123.0,59122.0,1.404414]
[1723653168471,0.014,59123.0,59122.0,1.23534]
[1723653168666,0.014,59123.0,59122.0,0.496974]
[1723653168969,0.014,59123.0,59122.0,0.177537]
[1723653169178,0.014,59123.0,59122.0,0.22798803]
[1723653169373,0.014,59123.0,59122.0,0.262074]
[1723653169573,0.014,59123.0,59122.0,0.086537]
[1723653169769,0.466335,59123.0,59122.0,0.086537]
[1723653169975,0.466335,59123.0,59122.0,0.002]
[1723653170163,0.576335,59123.0,59122.0,0.002]
[1723653170368,0.466335,59123.0,59122.0,0.002]
[1723653170685,0.084542,59118.0,59109.0,0.084555]
[1723653170975,0.084542,59118.0,59104.0,0.3654]
[1723653170976,0.04952096,59113.0,59104.0,0.3654]
[1723653171172,0.04952185,59113.0,59112.0,0.084551]
[1723653171371,0.084543,59118.0,59114.0,0.084548]
[1723653171866,0.084549,59114.0,59110.0,0.3654]
[1723653172070,0.04952246,59112.0,59110.0,0.36565378]
[1723653172263,0.13407146,59114.0,59112.0,0.084551]
[1723653173072,0.084544,59117.0,59110.0,0.36565378]
[1723653173286,0.04951669,59112.0,59111.0,0.084552]
[1723653173780,0.07202795,59118.0,59110.0,0.37678361]
[1723653173781,0.084551,59113.0,59112.0,0.084551]
[1723653173971,0.084551,59113.0,59110.0,0.37678361]
[1723653173972,0.084552,59111.0,59110.0,0.01138361]
[1723653174275,0.204552,59111.0,59110.0,0.01238361]
[1723653174778,0.084552,59111.0,59110.0,0.01238361]
[1723653174974,0.084552,59111.0,59110.0,0.01138361]
[1723653175277,0.13406869,59111.0,59110.0,0.01238361]
[1723653175475,0.42682795,59114.0,59110.0,0.37778361]
[1723653175668,0.248714,59114.0,59113.0,0.338196]
[1723653175873,0.0981591,59129.0,59113.0,0.338196]
[1723653175874,0.08479159,59122.0,59120.0,0.084539]
[1723653176073,0.04953843,59121.0,59120.0,0.3608]
[1723653176269,0.084538,59121.0,59120.0,0.3608]
[1723653176472,0.13407643,59121.0,59120.0,0.3608]
[1723653176692,0.04954301,59121.0,59120.0,0.3608]
[1723653176866,0.0497966,59122.0,59120.0,0.3608]
[1723653177174,0.00025359,59122.0,59121.0,0.084538]
[1723653178473,0.00125359,59122.0,59121.0,0.085538]
[1723653179165,0.05080762,59122.0,59121.0,0.085538]
[1723653179580,0.00125359,59122.0,59121.0,0.085538]
[1723653179967,0.00125359,59122.0,59121.0,0.086538]
[1723653180579,0.05080762,59122.0,59121.0,0.086538]
[1723653180875,0.05780762,59122.0,59121.0,0.086538]
[1723653181067,0.00825359,59122.0,59121.0,0.086538]
[1723653181378,0.14234462,59122.0,59121.0,0.002]
[1723653181584,0.09279059,59122.0,59121.0,0.002]
[1723653182072,0.00825359,59122.0,59121.0,0.002]
[1723653182278,0.00825359,59122.0,59121.0,0.086538]
[1723653182777,0.00825359,59122.0,59121.0,0.171076]
[1723653183376,0.00825359,59122.0,59121.0,0.086538]
[1723653183682,0.00825359,59122.0,59121.0,0.171076]
[1723653183971,0.00825359,59122.0,59121.0,0.593978]
[1723653184187,0.00825359,59122.0,59121.0,0.086538]
[1723653184575,0.05780541,59122.0,59121.0,0.086538]
[1723653184777,0.00825359,59122.0,59121.0,0.086538]
[1723653185684,0.00825359,59122.0,59121.0,0.13704194]
[1723653185865,0.00825359,59122.0,59121.0,0.1370427]
[1723653186068,0.00825359,59122.0,59121.0,0.086538]
[1723653186576,0.00825359,59122.0,59121.0,0.002]
[1723653186577,0.09279059,59122.0,59121.0,0.002]
[1723653187575,0.21279059,59122.0,59121.0,0.002]
[1723653187778,0.50744,59121.0,59113.0,0.0505047]
[1723653187970,0.50744,59121.0,59110.0,0.00025378]
[1723653187971,0.169104,59111.0,59110.0,0.00025378]
[1723653188576,1.076624,59111.0,59110.0,0.00025378]
[1723653188779,0.084558,59107.0,59103.0,0.0505047]
[1723653188974,0.084558,59107.0,59099.0,0.1518278]
[1723653188975,0.7216,59104.0,59099.0,0.084568]
[1723653189481,0.0495517,59116.0,59099.0,0.084568]
[1723653189482,0.0495517,59112.0,59103.0,0.3654]
[1723653189679,0.3608,59118.0,59113.0,0.3654]
[1723653189884,0.3608,59118.0,59117.0,0.084544]
[1723653190074,0.084545,59117.0,59113.0,0.3654]
[1723653190373,0.084545,59117.0,59113.0,0.001]
[1723653190374,0.084544,59117.0,59113.0,0.001]
[1723653190572,0.50748,59116.0,59105.0,0.0505047]
[1723653190773,0.3608,59107.0,59104.0,0.0505047]
[1723653190974,0.3608,59107.0,59106.0,0.3654]
[1723653191178,0.3608,59107.0,59106.0,0.449959]
[1723653191886,0.02741573,59107.0,59106.0,0.449959]
[1723653192187,0.00025378,59112.0,59108.0,0.084556]
[1723653192188,0.084554,59110.0,59108.0,0.084556]
[1723653192385,0.06007577,59109.0,59108.0,0.084556]
[1723653192586,0.06007577,59109.0,59106.0,0.3654]
[1723653192778,0.50756,59108.0,59102.0,0.00025378]
[1723653192978,0.445364,59103.0,59102.0,0.00025378]
[1723653193282,0.084577,59094.0,59093.0,0.084578]
[1723653193487,0.50768,59094.0,59087.0,0.00019388]
[1723653193676,0.3608,59089.0,59087.0,0.00019388]
[1723653193876,0.11725628,59088.0,59087.0,0.00019388]
[1723653194076,0.63579128,59088.0,59080.0,0.01108617]
[1723653194292,0.3608,59082.0,59078.0,0.3654]
[1723653194475,0.09892959,59080.0,59079.0,0.08485178]
[1723653195073,0.3608,59082.0,59080.0,0.084597]
[1723653195280,0.09898244,59081.0,59080.0,0.084597]
[1723653195480,0.00014923,59081.0,59080.0,0.084597]
[1723653196574,0.00014923,59081.0,59080.0,0.095597]
[1723653196792,0.00014923,59081.0,59080.0,0.603397]
[1723653197088,0.001,59088.0,59080.0,1.102297]
[1723653197289,0.001,59088.0,59087.0,0.450987]
[1723653197475,0.001,59088.0,59087.0,0.551587]
[1723653197673,0.00025378,59090.0,59089.0,0.084584]
[1723653197878,0.00029843,59090.0,59089.0,0.084584]
[1723653199288,0.00029843,59090.0,59080.0,1e-06]
[1723653199289,0.084588,59086.0,59080.0,1e-06]
[1723653199483,0.3608,59081.0,59079.0,7.8e-07]
[1723653199678,0.084612,59070.0,59054.0,0.084634]
[1723653199989,0.3608,59058.0,59051.0,0.3654]
[1723653200185,4.465e-05,59057.0,59051.0,0.3654]
[1723653200390,4.465e-05,59057.0,59056.0,0.084631]
[1723653201182,0.36084465,59057.0,59056.0,0.084631]
[1723653202390,0.36184465,59057.0,59056.0,0.092631]
[1723653204384,0.36184465,59057.0,59056.0,0.098631]
[1723653204385,0.36284465,59057.0,59056.0,0.098631]
[1723653205184,0.36284465,59057.0,59056.0,0.014]
[1723653205391,0.55747465,59057.0,59056.0,0.014]
[1723653205998,0.36284465,59057.0,59056.0,0.098631]
[1723653206396,0.00204465,59057.0,59056.0,0.098631]
[1723653206804,0.36284465,59057.0,59056.0,0.098631]
[1723653207500,0.00204465,59057.0,59056.0,0.098631]
[1723653208009,0.36284465,59057.0,59056.0,0.098631]
[1723653209611,0.48284465,59057.0,59056.0,0.098631]
[1723653209807,0.57747465,59057.0,59056.0,0.014]
[1723653210007,1.50547465,59057.0,59056.0,0.014]
[1723653210406,1.59010465,59057.0,59056.0,0.014]
[1723653211805,1.68366463,59057.0,59056.0,0.014]
[1723653213315,0.169274,59052.0,59051.0,0.000254]
[1723653213515,0.63011865,59052.0,59051.0,0.000254]
[1723653213712,1.45352165,59052.0,59051.0,0.000254]
[1723653214423,1.53815865,59052.0,59051.0,0.000254]
[1723653215117,1.45352165,59052.0,59051.0,0.000254]
[1723653215314,1.05352165,59052.0,59051.0,0.000254]
[1723653216010,0.36084465,59052.0,59051.0,0.084892]
[1723653216217,0.3015648,59052.0,59051.0,0.084892]
[1723653216420,4.465e-05,59052.0,59051.0,0.084892]
[1723653216719,0.00504465,59052.0,59051.0,0.09371999]
[1723653217216,4.465e-05,59052.0,59051.0,0.17835799]
[1723653217711,0.3728,59057.0,59056.0,0.084631]
[1723653218614,0.000254,59062.0,59061.0,0.084624]
[1723653220422,0.013254,59062.0,59061.0,0.085624]
[1723653220611,0.013254,59062.0,59061.0,0.593584]
[1723653220808,0.010254,59062.0,59061.0,0.593584]
[1723653221211,0.021254,59062.0,59061.0,0.594584]
[1723653221606,0.021254,59062.0,59061.0,0.696484]
[1723653222014,0.021254,59062.0,59061.0,0.188524]
[1723653222417,0.021254,59062.0,59061.0,0.19744644]
[1723653223816,0.010254,59062.0,59061.0,0.19644644]
[1723653224418,0.021254,59062.0,59061.0,0.26470624]
[1723653224610,0.021254,59062.0,59061.0,0.19744644]
[1723653225319,0.3608,59072.0,59061.0,0.26470624]
[1723653225511,0.084596,59081.0,59078.0,0.084599]
[1723653225710,0.445397,59080.0,59078.0,0.084599]
[1723653225918,0.3608,59080.0,59079.0,0.084598]
[1723653226126,0.3608,59091.0,59076.0,0.3654]
[1723653226127,0.3608,59085.0,59076.0,0.3654]
[1723653226421,0.3608,59085.0,59071.0,0.3608]
[1723653226422,0.3608,59085.0,59084.0,0.084591]
[1723653226612,0.000254,59086.0,59085.0,0.08459]
[1723653226930,0.3608,59091.0,59090.0,0.084583]
[1723653227310,0.361054,59091.0,59090.0,0.084583]
[1723653227517,0.000254,59091.0,59090.0,0.084583]
[1723653227917,0.3608,59097.0,59096.0,0.084574]
[1723653228919,0.42088921,59097.0,59096.0,0.084574]
[1723653229521,0.084575,59096.0,59092.0,0.084579]
[1723653229828,0.1308788,59093.0,59080.0,0.000254]
[1723653230023,0.084593,59083.0,59081.0,0.084595]
[1723653230231,0.02742062,59082.0,59081.0,0.084595]
[1723653230415,0.02742062,59082.0,59080.0,0.00927942]
[1723653230619,0.14469077,59081.0,59080.0,0.00927942]
[1723653230829,0.18611784,59081.0,59080.0,0.000254]
[1723653231921,0.10152284,59081.0,59080.0,0.084851]
[1723653232117,0.1151643,59081.0,59080.0,0.084851]
[1723653232322,0.17526007,59081.0,59080.0,0.084851]
[1723653232727,0.14783945,59081.0,59080.0,0.084851]
[1723653232915,0.1151643,59081.0,59080.0,0.084851]
[1723653233117,0.06009577,59081.0,59080.0,0.084851]
[1723653233425,0.0274264,59081.0,59080.0,0.084851]
[1723653233620,0.09871022,59083.0,59082.0,0.084594]
[1723653233822,0.09871022,59083.0,59082.0,0.449994]
[1723653234021,0.000254,59087.0,59082.0,0.3654]
[1723653234317,0.000254,59087.0,59080.0,0.104754]
[1723653234318,0.000254,59087.0,59086.0,0.084588]
[1723653234727,0.06035355,59087.0,59086.0,0.084588]
[1723653236233,0.02767934,59087.0,59086.0,0.084588]
[1723653236425,0.02767934,59087.0,59086.0,0.0935106]
[1723653236621,0.000254,59087.0,59086.0,0.1015106]
[1723653236827,0.02767934,59087.0,59086.0,0.1015106]
[1723653237130,0.000254,59087.0,59086.0,0.1105106]
[1723653237517,0.000254,59087.0,59086.0,0.0935106]
[1723653238123,0.000254,59087.0,59086.0,0.0975106]
[1723653239230,0.000254,59087.0,59086.0,0.004]
[1723653239626,0.084588,59086.0,59080.0,0.000254]
[1723653239826,0.445395,59081.0,59080.0,0.000254]
[1723653240021,0.445395,59081.0,59080.0,0.09367603]
[1723653240221,0.3608,59081.0,59080.0,0.09367603]
[1723653241124,0.445395,59081.0,59080.0,0.000254]
[1723653241329,0.084612,59070.0,59063.0,0.8028]
[1723653241529,0.084612,59070.0,59063.0,0.45894086]
[1723653241530,0.08462,59065.0,59063.0,0.45894086]
[1723653241838,0.08462,59065.0,59063.0,0.084621]
[1723653241839,0.3608,59064.0,59063.0,0.084621]
[1723653242026,0.3608,59064.0,59054.0,0.3285]
[1723653242027,0.86872,59064.0,59054.0,0.3285]
[1723653242228,0.86872,59064.0,59048.0,0.36652]
[1723653242229,0.3608,59055.0,59048.0,0.36652]
[1723653242430,0.3608,59055.0,59054.0,0.084634]
[1723653242629,0.3608,59055.0,59048.0,0.3654]
[1723653242630,0.3608,59056.0,59055.0,0.084632]
[1723653242937,0.3608,59056.0,59053.0,0.000254]
[1723653243130,0.3608,59056.0,59055.0,0.084633]
[1723653244831,0.3608,59056.0,59053.0,0.00897075]
[1723653245234,0.3608,59056.0,59054.0,0.084633]
[1723653245735,0.3608,59056.0,59053.0,0.00897075]
[1723653245736,0.3608,59056.0,59055.0,0.084633]
[1723653246135,0.3608,59056.0,59055.0,0.450033]
[1723653246341,0.31846017,59056.0,59055.0,0.450033]
[1723653247533,0.31846017,59056.0,59055.0,0.084633]
[1723653247835,0.31846017,59056.0,59055.0,0.093633]
[1723653248739,0.40309117,59056.0,59055.0,0.093633]
[1723653249336,0.31846017,59056.0,59055.0,0.093633]
[1723653249734,0.31846017,59056.0,59055.0,0.084633]
[1723653250144,0.40309117,59056.0,59055.0,0.088633]
[1723653250636,0.40309117,59056.0,59055.0,0.096633]
[1723653250937,0.40309117,59056.0,59055.0,0.092633]
[1723653251140,0.40309117,59056.0,59055.0,0.094633]
[1723653252541,0.50309117,59056.0,59055.0,0.092633]
[1723653253139,0.50309117,59056.0,59055.0,0.091633]
[1723653254133,0.31846017,59056.0,59055.0,0.091633]
[1723653254441,0.31846017,59056.0,59055.0,0.457033]
[1723653256041,0.1044,59066.0,59055.0,0.457033]
[1723653256042,0.084618,59066.0,59055.0,0.457033]
[1723653256244,0.010254,59065.0,59062.0,0.3654]
[1723653256446,0.000254,59065.0,59064.0,0.08462]
[1723653256748,0.100254,59065.0,59064.0,0.08462]
[1723653257048,0.084625,59061.0,59060.0,0.084625]
[1723653257438,0.000254,59065.0,59058.0,0.3608]
[1723653257741,0.000254,59065.0,59064.0,0.08462]
[1723653258135,0.471054,59065.0,59064.0,0.08462]
[1723653258945,0.110254,59065.0,59064.0,0.08462]
[1723653259343,0.471054,59065.0,59064.0,0.08462]
[1723653259944,0.110254,59065.0,59064.0,0.08462]
[1723653260142,0.110254,59065.0,59064.0,0.09172174]
[1723653261053,0.110254,59065.0,59060.0,0.084626]
[1723653261237,0.445425,59061.0,59060.0,0.084626]
[1723653262146,0.575425,59061.0,59060.0,0.00699575]
[1723653262339,0.4908,59061.0,59056.0,0.3654]
[1723653262540,0.4908,59061.0,59060.0,0.011]
[1723653263148,0.575425,59061.0,59060.0,0.095626]
[1723653263351,0.214625,59061.0,59060.0,0.095626]
[1723653264439,0.575425,59061.0,59060.0,0.095626]
[1723653264955,0.575425,59061.0,59060.0,0.100626]
[1723653265155,0.575425,59061.0,59060.0,0.005]
[1723653265450,0.084635,59054.0,59053.0,0.000254]
[1723653265655,0.515435,59054.0,59047.0,0.00721997]
[1723653265847,0.515435,59054.0,59047.0,0.084645]
[1723653265848,0.445444,59048.0,59047.0,0.084645]
[1723653266241,0.445444,59048.0,59047.0,0.09156414]
[1723653267749,0.445444,59048.0,59047.0,0.084645]
[1723653268256,0.445444,59048.0,59043.0,0.08465]
[1723653268257,0.084646,59046.0,59043.0,0.08465]
[1723653268957,0.084646,59046.0,59032.0,0.084666]
[1723653268958,0.08466,59037.0,59035.0,0.084662]
[1723653269153,0.445461,59036.0,59035.0,0.084662]
[1723653269459,0.3608,59036.0,59035.0,0.084662]
[1723653269850,0.36092669,59036.0,59035.0,0.084662]
[1723653270049,0.36092669,59036.0,59035.0,0.09173297]
[1723653270257,0.36092669,59036.0,59035.0,0.10473297]
[1723653270458,0.44558769,59036.0,59035.0,0.10473297]
[1723653270653,0.56558769,59036.0,59035.0,0.10473297]
[1723653271150,0.44558769,59036.0,59035.0,0.10473297]
[1723653271346,0.44558769,59036.0,59035.0,0.02507097]
[1723653271751,0.44558769,59036.0,59035.0,0.01207097]
[1723653271948,0.56658769,59036.0,59035.0,0.02507097]
[1723653273156,1.01204869,59036.0,59035.0,0.0124667]
[1723653273549,0.084668,59031.0,59030.0,0.000254]
[1723653273748,0.084668,59031.0,59010.0,0.29834526]
[1723653273749,0.084692,59014.0,59007.0,0.1023]
[1723653273948,0.00014739,59014.0,59013.0,0.36781281]
[1723653274261,0.00014739,59014.0,59007.0,0.209]
[1723653274262,0.084697,59012.0,59006.0,0.00104]
[1723653274561,0.084697,59012.0,59009.0,0.084699]
[1723653274864,0.36094739,59014.0,59010.0,0.084698]
[1723653275157,0.36094739,59014.0,59003.0,0.108]
[1723653275158,0.00014739,59014.0,59012.0,0.084694]
[1723653275659,0.00014739,59014.0,59013.0,0.084694]
[1723653276060,0.00114739,59014.0,59013.0,0.084694]
[1723653276747,0.00014739,59014.0,59013.0,0.993054]
[1723653276951,0.3608,59020.0,59019.0,0.084685]
[1723653277972,0.084688,59017.0,59012.0,0.01]
[1723653278156,0.084688,59017.0,59012.0,0.01717391]
[1723653278356,0.084688,59017.0,59012.0,0.09186891]
[1723653278659,0.084688,59017.0,59014.0,0.084692]
[1723653278862,0.3608,59020.0,59017.0,0.084688]
[1723653279254,0.3608,59020.0,59012.0,0.00717391]
[1723653279455,0.3608,59020.0,59009.0,0.3654]
[1723653279751,0.3608,59020.0,59012.0,0.011]
[1723653279752,0.001,59017.0,59012.0,0.011]
[1723653280259,0.085688,59017.0,59012.0,0.095695]
[1723653280455,0.445494,59013.0,59012.0,0.011]
[1723653280768,0.565494,59013.0,59012.0,0.011]
[1723653280956,0.3608,59013.0,59012.0,0.095695]
[1723653281157,0.3608,59013.0,59012.0,0.084695]
[1723653281853,0.3608,59013.0,59012.0,0.089695]
[1723653282053,0.3608,59020.0,59019.0,0.084685]
[1723653282263,0.000254,59025.0,59024.0,0.084678]
[1723653283861,0.08468,59023.0,59019.0,0.000254]
[1723653284059,0.3608,59020.0,59019.0,0.084939]
[1723653284260,0.4808,59020.0,59019.0,0.084939]
[1723653284560,0.3608,59020.0,59019.0,0.084939]
[1723653284959,0.3608,59020.0,59019.0,0.09189497]
[1723653285359,0.4808,59020.0,59019.0,0.000254]
[1723653285558,0.651168,59020.0,59019.0,0.009254]
[1723653285765,0.811168,59020.0,59019.0,0.009254]
[1723653286265,0.811168,59020.0,59012.0,0.004]
[1723653286266,0.084694,59013.0,59012.0,0.004]
[1723653286468,0.575494,59013.0,59012.0,0.004]
[1723653286970,0.3608,59013.0,59010.0,0.00718176]
[1723653287163,0.3608,59013.0,59012.0,0.084695]
[1723653288374,0.3618,59020.0,59019.0,0.007]
[1723653288669,0.4618,59020.0,59019.0,0.007]
[1723653288858,0.4608,59020.0,59019.0,0.084685]
[1723653289369,0.4608,59020.0,59019.0,0.09170392]
[1723653289571,0.3608,59020.0,59019.0,0.09170392]
[1723653290359,0.3608,59020.0,59019.0,0.09770392]
[1723653291364,0.361054,59025.0,59024.0,0.084678]
[1723653292169,0.471054,59025.0,59024.0,0.084678]
[1723653292987,0.000254,59025.0,59024.0,0.084678]
[1723653293167,0.3608,59039.0,59024.0,1.27368]
[1723653293468,0.3608,59033.0,59030.0,0.084669]
[1723653293771,0.004,59025.0,59024.0,0.003]
[1723653294768,0.004,59025.0,59024.0,0.002]
[1723653294970,0.004,59025.0,59024.0,0.003]
[1723653295272,0.004,59025.0,59024.0,0.087678]
[1723653295465,0.084924,59030.0,59027.0,0.084672]
[1723653295665,0.214924,59030.0,59024.0,0.002]
[1723653295871,0.130254,59030.0,59029.0,0.084671]
[1723653296177,0.000254,59030.0,59029.0,0.084671]
[1723653296472,0.3608,59045.0,59029.0,1.353711]
[1723653296667,0.3608,59045.0,59038.0,0.084658]
[1723653297169,0.084655,59040.0,59032.0,0.06743825]
[1723653297360,0.4708,59039.0,59031.0,0.06743825]
[1723653297565,0.084672,59028.0,59027.0,0.002]
[1723653297770,0.545472,59028.0,59027.0,0.002]
[1723653298363,0.4608,59028.0,59027.0,0.002]
[1723653298571,0.01627568,59039.0,59027.0,0.002]
[1723653298873,0.084664,59034.0,59032.0,0.084665]
[1723653299662,0.194664,59034.0,59033.0,0.084665]
[1723653299870,0.3608,59034.0,59029.0,0.0675032]
[1723653300073,0.3608,59034.0,59030.0,0.0675032]
[1723653300378,0.000254,59041.0,59033.0,0.7262]
[1723653300571,0.3608,59049.0,59048.0,0.084643]
[1723653300771,0.445442,59049.0,59048.0,0.084643]
[1723653300972,0.3608,59049.0,59048.0,0.084643]
[1723653303272,0.3608,59049.0,59046.0,0.00716558]
[1723653303273,0.4708,59049.0,59046.0,0.00716558]
[1723653303576,0.4708,59049.0,59045.0,0.084647]
[1723653303783,0.3608,59049.0,59048.0,0.084643]
[1723653303972,0.3708,59049.0,59048.0,0.085643]
[1723653304373,0.43093873,59049.0,59048.0,0.085643]
[1723653304679,0.42093873,59049.0,59048.0,0.084643]
[1723653304871,0.42093873,59049.0,59048.0,0.085643]
[1723653304872,0.42993934,59049.0,59048.0,0.085643]
[1723653305072,0.39724322,59049.0,59048.0,0.085643]
[1723653305682,0.13565135,59049.0,59048.0,0.170286]
[1723653305869,0.04644322,59049.0,59048.0,0.170286]
[1723653306071,0.05644322,59049.0,59048.0,0.273886]
[1723653306275,0.08264268,59050.0,59049.0,0.169284]
[1723653306473,1e-08,59053.0,59052.0,0.084638]
[1723653306677,0.000254,59054.0,59052.0,0.084638]
[1723653306983,0.000254,59054.0,59053.0,0.445436]
[1723653307679,0.000254,59054.0,59053.0,0.084636]
[1723653308474,0.38849423,59054.0,59053.0,0.084636]
[1723653308678,0.02769367,59054.0,59053.0,0.084636]
[1723653308983,0.009254,59054.0,59053.0,0.085636]
[1723653309383,0.009254,59054.0,59053.0,0.001]
[1723653309684,0.084649,59044.0,59041.0,0.00708373]
[1723653309984,0.084649,59044.0,59029.0,0.215]
[1723653309985,0.08466,59037.0,59029.0,0.215]
[1723653310285,0.3608,59037.0,59034.0,0.00715185]
[1723653310488,0.08467,59030.0,59027.0,0.084672]
[1723653310785,0.3608,59032.0,59030.0,0.084668]
[1723653311078,0.3608,59032.0,59031.0,0.084668]
[1723653311281,0.3608,59032.0,59025.0,0.000254]
[1723653311781,0.084675,59026.0,59025.0,0.000254]
[1723653312085,0.03271376,59026.0,59025.0,0.08493]
[1723653312277,0.3608,59027.0,59025.0,0.08493]
[1723653312473,0.084675,59026.0,59025.0,0.000254]
[1723653312673,0.3608,59027.0,59025.0,0.000254]
[1723653312983,0.3608,59027.0,59026.0,0.084675]
[1723653313180,0.084675,59026.0,59025.0,0.000254]
[1723653313370,0.204675,59026.0,59025.0,0.000254]
[1723653313782,0.084675,59026.0,59025.0,0.000254]
[1723653314172,0.592915,59026.0,59025.0,0.000254]
[1723653314572,0.592915,59026.0,59019.0,0.084685]
[1723653314573,1.14824,59026.0,59013.0,0.3608]
[1723653314777,1.14824,59026.0,58999.0,0.42927887]
[1723653314778,0.3608,59014.0,59003.0,0.3608]
[1723653315082,0.3608,59014.0,59013.0,0.084694]
[1723653315976,0.000254,59019.0,59018.0,0.084686]
[1723653316781,0.000254,59019.0,59013.0,0.3764]
[1723653316782,0.000254,59019.0,59013.0,0.011]
[1723653316982,0.084689,59016.0,59014.0,0.084691]
[1723653317284,0.084692,59014.0,59013.0,0.01827431]
[1723653317582,0.084692,59014.0,59008.0,0.000254]
[1723653317583,0.084699,59009.0,59008.0,0.000254]
[1723653317780,0.445499,59009.0,59008.0,0.000254]
[1723653318184,0.3608,59014.0,59008.0,0.000254]
[1723653318982,0.3608,59014.0,59013.0,0.084694]
[1723653319785,0.000254,59019.0,59013.0,0.084694]
[1723653319786,0.000254,59019.0,59018.0,0.084686]
[1723653319989,0.3608,59033.0,59017.0,0.3608]
[1723653320180,0.3608,59033.0,59023.0,0.7262]
[1723653320383,0.3608,59033.0,59032.0,0.084666]
[1723653321280,0.7216,59033.0,59032.0,0.084666]
[1723653321486,0.3608,59033.0,59032.0,0.084666]
[1723653322592,0.000254,59038.0,59037.0,0.084659]
[1723653322784,0.000254,59038.0,59037.0,0.450059]
[1723653323083,0.000254,59038.0,59037.0,0.084659]
[1723653324186,0.000254,59038.0,59032.0,0.012]
[1723653324187,1.028414,59038.0,59032.0,0.012]
[1723653324393,0.3608,59034.0,59032.0,0.012]
[1723653324693,0.3608,59034.0,59032.0,0.009]
[1723653324694,0.445465,59034.0,59032.0,0.009]
[1723653324994,0.445465,59034.0,59032.0,0.084666]
[1723653325489,0.000254,59038.0,59037.0,0.084659]
[1723653325688,0.000254,59038.0,59037.0,0.086659]
[1723653325991,0.084912,59038.0,59037.0,0.008]
[1723653326187,0.204912,59038.0,59037.0,0.008]
[1723653326582,0.79773,59038.0,59037.0,0.008]
[1723653326786,1.369214,59038.0,59027.0,0.000254]
[1723653326989,0.445472,59028.0,59027.0,0.000254]
[1723653327589,0.084692,59015.0,59013.0,0.084692]
[1723653327887,0.084684,59020.0,59009.0,0.48114979]
[1723653328085,0.214684,59020.0,59009.0,0.48114979]
[1723653328289,0.214684,59020.0,59015.0,0.08469]
[1723653328290,0.084685,59019.0,59015.0,0.08469]
[1723653328487,0.12,59019.0,59010.0,0.3654]
[1723653328793,0.3608,59021.0,59010.0,0.3654]
[1723653328794,0.084688,59017.0,59011.0,0.000254]
[1723653330086,0.204689,59017.0,59012.0,0.084695]
[1723653330280,0.084689,59016.0,59013.0,0.084694]
[1723653330481,0.001,59017.0,59011.0,0.013254]
[1723653330687,0.101,59017.0,59011.0,0.013254]
[1723653330888,0.185688,59017.0,59014.0,0.084691]
[1723653331287,0.101,59017.0,59011.0,0.013254]
[1723653331483,0.001,59017.0,59011.0,0.013254]
[1723653331685,0.001,59017.0,59015.0,0.08469]
[1723653331988,0.101,59017.0,59015.0,0.08469]
[1723653332697,0.102,59017.0,59014.0,0.005]
[1723653332993,0.169382,59015.0,59014.0,0.005]